[Event "*** Titled Tuesday Blitz"]
[Site "Chess.com"]
[Date "2018.05.01"]
[Round "1"]
[White "matiss90"]
[Black "GrigorGrigorov"]
[Result "0-1"]
[WhiteElo "2322"]
[BlackElo "2648"]
[TimeControl "180+2"]
[EndTime "13:07:29 PDT"]
[Termination "GrigorGrigorov won on time"]

1. e4 {[%clk 0:03:01]} 1... d5 {[%clk 0:02:59.5]} 2. exd5 {[%clk 0:03:01.6]}
2... Qxd5 {[%clk 0:03:00.1]} 3. Nc3 {[%clk 0:02:59.6]} 3... Qd8 {[%clk
0:03:00.8]} 4. d4 {[%clk 0:03:00.5]} 4... Nf6 {[%clk 0:03:01.6]} 5. Nf3 {[%clk
0:03:01.4]} 5... Bg4 {[%clk 0:03:02]} 6. h3 {[%clk 0:03:00.8]} 6... Bxf3 {[%clk
0:03:02.3]} 7. Qxf3 {[%clk 0:03:01.8]} 7... c6 {[%clk 0:03:03.8]} 8. Be3 {[%clk
0:03:02.8]} 8... e6 {[%clk 0:03:04.4]} 9. g4 {[%clk 0:03:04]} 9... Bb4 {[%clk
0:03:04.5]} 10. Bd3 {[%clk 0:02:57.3]} 10... Qa5 {[%clk 0:02:59]} 11. Bd2 {[%clk
0:02:50.3]} 11... Nd5 {[%clk 0:02:59.6]} 12. Ne4 {[%clk 0:02:24.8]} 12... Bxd2+
{[%clk 0:02:58.4]} 13. Nxd2 {[%clk 0:02:26.7]} 13... Nd7 {[%clk 0:02:45.9]} 14.
c3 {[%clk 0:02:27.3]} 14... Qc7 {[%clk 0:02:42.8]} 15. O-O-O {[%clk 0:02:19.9]}
15... Qf4 {[%clk 0:02:41]} 16. Qe2 {[%clk 0:02:18.1]} 16... O-O-O {[%clk
0:02:40.5]} 17. Kb1 {[%clk 0:02:18.9]} 17... h5 {[%clk 0:02:37.4]} 18. gxh5
{[%clk 0:01:53.1]} 18... N5f6 {[%clk 0:02:06.1]} 19. Rhg1 {[%clk 0:01:49.7]}
19... Nxh5 {[%clk 0:02:06.5]} 20. Ne4 {[%clk 0:01:11.4]} 20... g6 {[%clk
0:02:02.6]} 21. Rg4 {[%clk 0:01:05.7]} 21... Qc7 {[%clk 0:02:02.7]} 22. Ng5
{[%clk 0:00:56.3]} 22... Ndf6 {[%clk 0:02:01.8]} 23. Rgg1 {[%clk 0:00:41.8]}
23... Nf4 {[%clk 0:01:57.7]} 24. Qf3 {[%clk 0:00:40.3]} 24... Rh4 {[%clk
0:01:45.1]} 25. Bc2 {[%clk 0:00:33.3]} 25... Rdh8 {[%clk 0:01:42]} 26. Bb3
{[%clk 0:00:33.3]} 26... Nh7 {[%clk 0:01:26.5]} 27. Ne4 {[%clk 0:00:13.8]} 27...
Rxh3 {[%clk 0:01:25.1]} 28. Rg3 {[%clk 0:00:14.8]} 28... Rh4 {[%clk 0:01:14.4]}
29. a4 {[%clk 0:00:12.2]} 29... Kb8 {[%clk 0:01:13.8]} 30. Nc5 {[%clk
0:00:05.9]} 30... Nf6 {[%clk 0:01:10.9]} 31. a5 {[%clk 0:00:03.5]} 31... Qxa5
{[%clk 0:01:05.7]} 32. Nd7+ {[%clk 0:00:04.3]} 32... Nxd7 {[%clk 0:01:06]} 0-1

[Event "*** Titled Tuesday Blitz"]
[Site "Chess.com"]
[Date "2018.05.01"]
[Round "1"]
[White "catalin009"]
[Black "Sanan_Sjugirov"]
[Result "0-1"]
[WhiteElo "2399"]
[BlackElo "2793"]
[TimeControl "180+2"]
[EndTime "13:07:30 PDT"]
[Termination "Sanan_Sjugirov won by resignation"]

1. e4 {[%clk 0:03:00.4]} 1... c5 {[%clk 0:02:58.4]} 2. Nf3 {[%clk 0:03:00.9]}
2... Nc6 {[%clk 0:02:56.7]} 3. Bb5 {[%clk 0:03:01.1]} 3... g6 {[%clk 0:02:56.3]}
4. Bxc6 {[%clk 0:03:01.4]} 4... dxc6 {[%clk 0:02:55.6]} 5. d3 {[%clk 0:03:00.2]}
5... Bg7 {[%clk 0:02:56]} 6. h3 {[%clk 0:03:00.3]} 6... e5 {[%clk 0:02:54.9]} 7.
Be3 {[%clk 0:02:58.6]} 7... b6 {[%clk 0:02:55.4]} 8. a4 {[%clk 0:02:56.4]} 8...
a5 {[%clk 0:02:52.1]} 9. Nbd2 {[%clk 0:02:55.3]} 9... Ne7 {[%clk 0:02:43.8]} 10.
Nc4 {[%clk 0:02:56]} 10... f6 {[%clk 0:02:41.3]} 11. Qd2 {[%clk 0:02:53]} 11...
h5 {[%clk 0:02:31.3]} 12. b4 {[%clk 0:02:43.5]} 12... axb4 {[%clk 0:02:24]} 13.
a5 {[%clk 0:02:43.8]} 13... bxa5 {[%clk 0:01:45.8]} 14. Bxc5 {[%clk 0:02:43.7]}
14... O-O {[%clk 0:01:46.3]} 15. O-O {[%clk 0:02:42.4]} 15... Be6 {[%clk
0:01:44.5]} 16. Bb6 {[%clk 0:02:36]} 16... Qb8 {[%clk 0:01:32.9]} 17. Bxa5
{[%clk 0:01:56.5]} 17... c5 {[%clk 0:01:32.6]} 18. Qe3 {[%clk 0:01:47.5]} 18...
Qb5 {[%clk 0:01:25.3]} 19. Nfd2 {[%clk 0:01:48.4]} 19... Ra6 {[%clk 0:01:07.9]}
20. Bc7 {[%clk 0:01:16.5]} 20... Rfa8 {[%clk 0:00:48.1]} 21. Rxa6 {[%clk
0:01:15.1]} 21... Rxa6 {[%clk 0:00:50]} 22. Bd6 {[%clk 0:01:14.1]} 22... Nc6
{[%clk 0:00:50.7]} 23. Bxc5 {[%clk 0:01:09.4]} 23... Ra2 {[%clk 0:00:49.9]} 24.
f4 {[%clk 0:00:52.2]} 24... exf4 {[%clk 0:00:49.9]} 25. Qxf4 {[%clk 0:00:49.1]}
25... Qxc5+ {[%clk 0:00:50.2]} 26. Kh1 {[%clk 0:00:38.2]} 26... Ne5 {[%clk
0:00:49.9]} 27. Nb3 {[%clk 0:00:35.9]} 27... Qa7 {[%clk 0:00:49.5]} 28. Ne3
{[%clk 0:00:20.7]} 28... Bxb3 {[%clk 0:00:47]} 29. cxb3 {[%clk 0:00:21.5]} 29...
Nxd3 {[%clk 0:00:45.8]} 30. Qd6 {[%clk 0:00:16.7]} 30... Qxe3 {[%clk 0:00:45.1]}
0-1

[Event "*** Titled Tuesday Blitz"]
[Site "Chess.com"]
[Date "2018.05.01"]
[Round "1"]
[White "Frolik67"]
[Black "silverback96"]
[Result "1-0"]
[WhiteElo "2446"]
[BlackElo "2042"]
[TimeControl "180+2"]
[EndTime "13:07:35 PDT"]
[Termination "Frolik67 won by resignation"]

1. e4 {[%clk 0:03:01.9]} 1... e6 {[%clk 0:03:00.9]} 2. d3 {[%clk 0:03:02.3]}
2... d5 {[%clk 0:03:02.2]} 3. Nd2 {[%clk 0:03:02.7]} 3... Nc6 {[%clk 0:03:02.6]}
4. Ngf3 {[%clk 0:03:03.7]} 4... Nf6 {[%clk 0:03:03.8]} 5. g3 {[%clk 0:03:04.6]}
5... dxe4 {[%clk 0:03:05]} 6. dxe4 {[%clk 0:03:05.5]} 6... Bc5 {[%clk
0:03:06.5]} 7. Bg2 {[%clk 0:03:06.4]} 7... O-O {[%clk 0:03:08.1]} 8. O-O {[%clk
0:03:07.1]} 8... e5 {[%clk 0:03:09.7]} 9. c3 {[%clk 0:03:05.4]} 9... a5 {[%clk
0:03:11.2]} 10. Nc4 {[%clk 0:03:03.4]} 10... Qxd1 {[%clk 0:02:54.7]} 11. Rxd1
{[%clk 0:03:05.3]} 11... Nxe4 {[%clk 0:02:55.2]} 12. Be3 {[%clk 0:03:06.5]}
12... Bxe3 {[%clk 0:02:53.5]} 13. fxe3 {[%clk 0:03:07.9]} 13... f6 {[%clk
0:02:15.4]} 14. Nfxe5 {[%clk 0:03:06.4]} 14... fxe5 {[%clk 0:02:17.3]} 15. Bxe4
{[%clk 0:03:07]} 15... Be6 {[%clk 0:02:18.7]} 16. Bxc6 {[%clk 0:03:07.1]} 16...
Bxc4 {[%clk 0:02:19.6]} 17. Bd5+ {[%clk 0:02:43.9]} 17... Bxd5 {[%clk 0:02:05]}
18. Rxd5 {[%clk 0:02:45.8]} 18... e4 {[%clk 0:02:02.1]} 19. Rad1 {[%clk
0:02:42.4]} 19... Rf3 {[%clk 0:01:50.9]} 20. Rd7 {[%clk 0:02:39.4]} 20... Rf7
{[%clk 0:01:06]} 21. Rxf7 {[%clk 0:02:39]} 21... Kxf7 {[%clk 0:01:06]} 22. Rd7+
{[%clk 0:02:40.6]} 22... Kf6 {[%clk 0:01:03.9]} 23. Rxc7 {[%clk 0:02:42.5]}
23... b5 {[%clk 0:00:58.1]} 24. Rb7 {[%clk 0:02:42]} 24... b4 {[%clk 0:00:58.2]}
25. c4 {[%clk 0:02:39.6]} 25... Rc8 {[%clk 0:00:51.4]} 26. b3 {[%clk 0:02:39.5]}
26... Rd8 {[%clk 0:00:52.6]} 27. Rb6+ {[%clk 0:02:33.4]} 27... Kf7 {[%clk
0:00:50.9]} 28. Rb7+ {[%clk 0:02:31.5]} 28... Kf6 {[%clk 0:00:51.5]} 29. Rb6+
{[%clk 0:02:32.2]} 29... Kf7 {[%clk 0:00:52.1]} 30. c5 {[%clk 0:02:32]} 30...
Rd1+ {[%clk 0:00:43.1]} 31. Kg2 {[%clk 0:02:33.2]} 31... Rd2+ {[%clk 0:00:42.8]}
32. Kh3 {[%clk 0:02:34.8]} 32... Rxa2 {[%clk 0:00:39.9]} 33. Ra6 {[%clk
0:02:32]} 33... h5 {[%clk 0:00:32.1]} 34. Ra8 {[%clk 0:02:25.4]} 34... g5 {[%clk
0:00:30.2]} 35. g4 {[%clk 0:02:22.3]} 35... h4 {[%clk 0:00:29.3]} 36. c6 {[%clk
0:02:23]} 36... Rc2 {[%clk 0:00:28.8]} 37. Rxa5 {[%clk 0:02:23.5]} 37... Rxc6
{[%clk 0:00:27.1]} 38. Rxg5 {[%clk 0:02:25]} 38... Rc3 {[%clk 0:00:27.3]} 39.
Kxh4 {[%clk 0:02:26.2]} 39... Rxe3 {[%clk 0:00:26]} 40. Re5 {[%clk 0:02:23.2]}
40... Kf6 {[%clk 0:00:24.4]} 41. Rf5+ {[%clk 0:02:24.2]} 41... Kg6 {[%clk
0:00:23.5]} 42. Rf4 {[%clk 0:02:23.6]} 42... Rxb3 {[%clk 0:00:18.8]} 43. Rxe4
{[%clk 0:02:24.4]} 43... Rb1 {[%clk 0:00:20.2]} 44. Re6+ {[%clk 0:02:25.2]}
44... Kg7 {[%clk 0:00:20.8]} 45. Rb6 {[%clk 0:02:26.8]} 45... b3 {[%clk
0:00:22]} 46. Kg5 {[%clk 0:02:28]} 46... b2 {[%clk 0:00:19.7]} 47. Rb7+ {[%clk
0:02:28.7]} 47... Kf8 {[%clk 0:00:20.2]} 48. h4 {[%clk 0:02:29.9]} 48... Kg8
{[%clk 0:00:20.5]} 49. h5 {[%clk 0:02:31.1]} 49... Kf8 {[%clk 0:00:21.4]} 50. h6
{[%clk 0:02:32.4]} 50... Kg8 {[%clk 0:00:21.6]} 51. Kg6 {[%clk 0:02:33.7]} 51...
Kf8 {[%clk 0:00:22.4]} 52. g5 {[%clk 0:02:34.1]} 52... Rc1 {[%clk 0:00:16.2]}
53. Rb8+ {[%clk 0:02:33]} 53... Ke7 {[%clk 0:00:11.6]} 54. Rxb2 {[%clk
0:02:34.9]} 54... Rc6+ {[%clk 0:00:12.2]} 55. Kg7 {[%clk 0:02:36.3]} 55... Ke6
{[%clk 0:00:12.6]} 56. h7 {[%clk 0:02:37]} 56... Rc7+ {[%clk 0:00:14.5]} 57. Kg6
{[%clk 0:02:38.2]} 57... Rc8 {[%clk 0:00:15.3]} 58. Re2+ {[%clk 0:02:38.8]}
58... Kd7 {[%clk 0:00:15.5]} 59. Kg7 {[%clk 0:02:39.6]} 1-0

[Event "*** Titled Tuesday Blitz"]
[Site "Chess.com"]
[Date "2018.05.01"]
[Round "1"]
[White "TheCount"]
[Black "ruvat"]
[Result "1-0"]
[WhiteElo "2550"]
[BlackElo "2241"]
[TimeControl "180+2"]
[EndTime "13:07:36 PDT"]
[Termination "TheCount won by checkmate"]

1. b3 {[%clk 0:02:49.9]} 1... d5 {[%clk 0:02:58.9]} 2. Bb2 {[%clk 0:02:51.2]}
2... Bg4 {[%clk 0:02:58.2]} 3. f3 {[%clk 0:02:50.5]} 3... Bh5 {[%clk 0:02:58.8]}
4. Nh3 {[%clk 0:02:33.8]} 4... f6 {[%clk 0:02:53.1]} 5. Nf4 {[%clk 0:02:22.5]}
5... Bf7 {[%clk 0:02:53.4]} 6. d4 {[%clk 0:02:24.1]} 6... Nd7 {[%clk 0:02:41.8]}
7. e4 {[%clk 0:02:17.1]} 7... dxe4 {[%clk 0:02:36.3]} 8. fxe4 {[%clk 0:02:19]}
8... e5 {[%clk 0:02:34.2]} 9. Nd3 {[%clk 0:02:17.1]} 9... exd4 {[%clk
0:02:30.7]} 10. Bxd4 {[%clk 0:02:19]} 10... Ne7 {[%clk 0:02:30.2]} 11. Nd2
{[%clk 0:02:18.9]} 11... Nc6 {[%clk 0:02:30.9]} 12. Bb2 {[%clk 0:02:09.2]} 12...
Bd6 {[%clk 0:02:30.2]} 13. Qe2 {[%clk 0:02:04.2]} 13... Nde5 {[%clk 0:02:20.9]}
14. O-O-O {[%clk 0:01:54.2]} 14... Qe7 {[%clk 0:02:18.3]} 15. Nf4 {[%clk
0:01:48.7]} 15... O-O-O {[%clk 0:01:58.9]} 16. Nd5 {[%clk 0:01:46.9]} 16... Qe6
{[%clk 0:01:43.9]} 17. Nf3 {[%clk 0:01:39.2]} 17... Rhe8 {[%clk 0:01:35]} 18.
Qb5 {[%clk 0:01:28.8]} 18... Kb8 {[%clk 0:01:26.8]} 19. Be2 {[%clk 0:01:20.6]}
19... h6 {[%clk 0:01:19.1]} 20. Rhe1 {[%clk 0:01:20.5]} 20... Nxf3 {[%clk
0:01:13.6]} 21. gxf3 {[%clk 0:01:12.9]} 21... Be5 {[%clk 0:01:08.6]} 22. Ba3
{[%clk 0:01:01.4]} 22... g5 {[%clk 0:00:53.9]} 23. Bc4 {[%clk 0:01:01]} 23...
Qh3 {[%clk 0:00:31.1]} 24. Ne7 {[%clk 0:00:43.2]} 24... Nxe7 {[%clk 0:00:25.4]}
25. Bxf7 {[%clk 0:00:43.3]} 25... Nc6 {[%clk 0:00:08.3]} 26. Bxe8 {[%clk
0:00:42.7]} 26... Rxe8 {[%clk 0:00:09.6]} 27. Re2 {[%clk 0:00:39.7]} 27... Qxf3
{[%clk 0:00:09.4]} 28. Bb2 {[%clk 0:00:34.6]} 28... Qf4+ {[%clk 0:00:07.7]} 29.
Kb1 {[%clk 0:00:35.5]} 29... Bxb2 {[%clk 0:00:08.7]} 30. Kxb2 {[%clk 0:00:36.7]}
30... Qe5+ {[%clk 0:00:09.8]} 31. Qxe5 {[%clk 0:00:37.5]} 31... Nxe5 {[%clk
0:00:10.4]} 32. Rf2 {[%clk 0:00:38.1]} 32... Re6 {[%clk 0:00:11.3]} 33. Rd8#
{[%clk 0:00:38.5]} 1-0

[Event "*** Titled Tuesday Blitz"]
[Site "Chess.com"]
[Date "2018.05.01"]
[Round "1"]
[White "2Tilted"]
[Black "Fins0905"]
[Result "0-1"]
[WhiteElo "2262"]
[BlackElo "2554"]
[TimeControl "180+2"]
[EndTime "13:07:38 PDT"]
[Termination "Fins0905 won by resignation"]

1. d4 {[%clk 0:03:01.3]} 1... d5 {[%clk 0:02:58.5]} 2. c4 {[%clk 0:03:02.3]}
2... c6 {[%clk 0:02:59.1]} 3. Nf3 {[%clk 0:03:03.2]} 3... Nf6 {[%clk 0:02:59.8]}
4. e3 {[%clk 0:03:03.4]} 4... Bf5 {[%clk 0:02:57.3]} 5. Nc3 {[%clk 0:02:57.8]}
5... e6 {[%clk 0:02:57.4]} 6. h3 {[%clk 0:02:51.3]} 6... h6 {[%clk 0:02:56.9]}
7. Qb3 {[%clk 0:02:48.4]} 7... Qb6 {[%clk 0:02:52]} 8. c5 {[%clk 0:02:46]} 8...
Qc7 {[%clk 0:02:52.3]} 9. Ne5 {[%clk 0:02:42.3]} 9... Nbd7 {[%clk 0:02:51]} 10.
f4 {[%clk 0:02:39.6]} 10... Nxe5 {[%clk 0:02:49]} 11. fxe5 {[%clk 0:02:41.5]}
11... Ne4 {[%clk 0:02:49.7]} 12. g4 {[%clk 0:02:36.3]} 12... Bg6 {[%clk
0:02:47.1]} 13. Bg2 {[%clk 0:02:36.8]} 13... Nxc3 {[%clk 0:02:37.9]} 14. Qxc3
{[%clk 0:02:17]} 14... Be7 {[%clk 0:02:23.4]} 15. h4 {[%clk 0:02:02.7]} 15... f6
{[%clk 0:02:11.4]} 16. h5 {[%clk 0:01:38.7]} 16... Bh7 {[%clk 0:02:07.8]} 17.
O-O {[%clk 0:01:31.2]} 17... fxe5 {[%clk 0:01:35.6]} 18. dxe5 {[%clk 0:01:33.1]}
18... Bh4 {[%clk 0:01:10.3]} 19. Bd2 {[%clk 0:01:23.2]} 19... Bg3 {[%clk
0:01:05.3]} 20. Rf4 {[%clk 0:01:16.1]} 20... Bxf4 {[%clk 0:01:01.4]} 21. exf4
{[%clk 0:01:18]} 21... O-O-O {[%clk 0:00:40.7]} 22. Qd4 {[%clk 0:01:18.5]} 22...
Be4 {[%clk 0:00:39.5]} 23. a4 {[%clk 0:00:59.4]} 23... Qe7 {[%clk 0:00:39.1]}
24. b4 {[%clk 0:00:56.9]} 24... Qh4 {[%clk 0:00:39.4]} 25. Ra2 {[%clk
0:00:47.5]} 25... Qxg4 {[%clk 0:00:39.3]} 26. Be3 {[%clk 0:00:49]} 26... g6
{[%clk 0:00:32.5]} 27. b5 {[%clk 0:00:49.7]} 27... gxh5 {[%clk 0:00:32.6]} 28.
bxc6 {[%clk 0:00:50.2]} 28... bxc6 {[%clk 0:00:31.8]} 29. Qb4 {[%clk 0:00:43.3]}
29... Rhg8 {[%clk 0:00:21.3]} 30. Rb2 {[%clk 0:00:30.4]} 30... Qd1+ {[%clk
0:00:19.2]} 31. Kh2 {[%clk 0:00:28.8]} 31... Rxg2+ {[%clk 0:00:20.4]} 32. Rxg2
{[%clk 0:00:30.4]} 32... Bxg2 {[%clk 0:00:21.4]} 33. Kxg2 {[%clk 0:00:30.8]}
33... Rg8+ {[%clk 0:00:21.6]} 0-1

[Event "*** Titled Tuesday Blitz"]
[Site "Chess.com"]
[Date "2018.05.01"]
[Round "1"]
[White "Jbd735"]
[Black "Cruel_Yaro"]
[Result "1-0"]
[WhiteElo "2344"]
[BlackElo "2631"]
[TimeControl "180+2"]
[EndTime "13:07:47 PDT"]
[Termination "Jbd735 won by resignation"]

1. e4 {[%clk 0:02:57.1]} 1... a6 {[%clk 0:02:58]} 2. d4 {[%clk 0:02:55.4]} 2...
c6 {[%clk 0:02:59.1]} 3. Nf3 {[%clk 0:02:51.8]} 3... d5 {[%clk 0:03:00]} 4. Nc3
{[%clk 0:02:45.1]} 4... Bg4 {[%clk 0:03:00.8]} 5. Be3 {[%clk 0:02:17.2]} 5... e6
{[%clk 0:02:58.6]} 6. Be2 {[%clk 0:02:10.8]} 6... Bb4 {[%clk 0:02:59.3]} 7. O-O
{[%clk 0:01:43.4]} 7... Nd7 {[%clk 0:02:51.1]} 8. e5 {[%clk 0:01:09.1]} 8... Ne7
{[%clk 0:02:47.9]} 9. h3 {[%clk 0:01:07.8]} 9... Bxf3 {[%clk 0:02:48.3]} 10.
Bxf3 {[%clk 0:01:08]} 10... Nf5 {[%clk 0:02:49.9]} 11. Ne2 {[%clk 0:01:02.5]}
11... c5 {[%clk 0:02:38.9]} 12. c3 {[%clk 0:00:59.8]} 12... cxd4 {[%clk
0:02:39.9]} 13. cxd4 {[%clk 0:00:57.6]} 13... Nxe3 {[%clk 0:02:29.7]} 14. fxe3
{[%clk 0:00:58.2]} 14... O-O {[%clk 0:02:30.7]} 15. Qb3 {[%clk 0:00:56.9]} 15...
a5 {[%clk 0:02:22.3]} 16. a3 {[%clk 0:00:56]} 16... Be7 {[%clk 0:02:22.9]} 17.
Rac1 {[%clk 0:00:50]} 17... a4 {[%clk 0:02:20.2]} 18. Qxb7 {[%clk 0:00:44.1]}
18... Rb8 {[%clk 0:02:15.6]} 19. Qa7 {[%clk 0:00:45]} 19... Bg5 {[%clk
0:02:13.2]} 20. Nf4 {[%clk 0:00:41.3]} 20... Rxb2 {[%clk 0:02:11.9]} 21. Rc7
{[%clk 0:00:30.5]} 21... Bxf4 {[%clk 0:01:48.5]} 22. exf4 {[%clk 0:00:30.6]}
22... Nb6 {[%clk 0:01:49.4]} 23. f5 {[%clk 0:00:23.9]} 23... Nc8 {[%clk
0:01:44.6]} 24. Qc5 {[%clk 0:00:20.3]} 24... Nb6 {[%clk 0:00:58.1]} 25. Bg4
{[%clk 0:00:14.1]} 25... exf5 {[%clk 0:00:54.3]} 26. Rxf5 {[%clk 0:00:14]} 26...
Rb5 {[%clk 0:00:41.5]} 27. Qc6 {[%clk 0:00:11]} 27... Rb1+ {[%clk 0:00:22]} 28.
Kh2 {[%clk 0:00:11.6]} 28... Qh4 {[%clk 0:00:22.9]} 29. Rcxf7 {[%clk 0:00:08.3]}
29... Rc8 {[%clk 0:00:18.6]} 30. Rf8+ {[%clk 0:00:08.2]} 30... Rxf8 {[%clk
0:00:18.2]} 31. Qe6+ {[%clk 0:00:09]} 1-0

[Event "*** Titled Tuesday Blitz"]
[Site "Chess.com"]
[Date "2018.05.01"]
[Round "1"]
[White "Fandorine"]
[Black "bilelou"]
[Result "1-0"]
[WhiteElo "2725"]
[BlackElo "2377"]
[TimeControl "180+2"]
[EndTime "13:08:11 PDT"]
[Termination "Fandorine won by checkmate"]

1. e4 {[%clk 0:02:56.3]} 1... c5 {[%clk 0:02:59.4]} 2. Nf3 {[%clk 0:02:56.9]}
2... d6 {[%clk 0:03:00.6]} 3. Nc3 {[%clk 0:02:57.4]} 3... a6 {[%clk 0:03:00]} 4.
d4 {[%clk 0:02:57.7]} 4... cxd4 {[%clk 0:03:00.2]} 5. Nxd4 {[%clk 0:02:59.6]}
5... Nf6 {[%clk 0:03:00.6]} 6. Be3 {[%clk 0:03:00.1]} 6... Ng4 {[%clk
0:02:57.4]} 7. Bg5 {[%clk 0:03:00.3]} 7... h6 {[%clk 0:02:57.5]} 8. Bc1 {[%clk
0:03:01.7]} 8... Nf6 {[%clk 0:02:55.8]} 9. Bc4 {[%clk 0:02:55.5]} 9... e6 {[%clk
0:02:49.7]} 10. Bb3 {[%clk 0:02:39]} 10... Be7 {[%clk 0:02:48.2]} 11. O-O {[%clk
0:02:38.7]} 11... O-O {[%clk 0:02:45.5]} 12. Qf3 {[%clk 0:02:39.7]} 12... Nc6
{[%clk 0:02:44.2]} 13. Nxc6 {[%clk 0:02:32.9]} 13... bxc6 {[%clk 0:02:44.3]} 14.
Qg3 {[%clk 0:02:29.6]} 14... Nh5 {[%clk 0:02:39.3]} 15. Qf3 {[%clk 0:02:27.6]}
15... Nf6 {[%clk 0:02:39.7]} 16. e5 {[%clk 0:02:19.7]} 16... dxe5 {[%clk
0:02:36.5]} 17. Qg3 {[%clk 0:02:14.5]} 17... Qd4 {[%clk 0:02:04.7]} 18. Be3
{[%clk 0:01:59.3]} 18... Nh5 {[%clk 0:01:50.3]} 19. Qf3 {[%clk 0:01:57.8]} 19...
Qh4 {[%clk 0:01:50.1]} 20. Qxc6 {[%clk 0:01:41.2]} 20... Rb8 {[%clk 0:01:49.4]}
21. Qe4 {[%clk 0:01:31.1]} 21... Qxe4 {[%clk 0:01:42.9]} 22. Nxe4 {[%clk
0:01:33]} 22... Nf4 {[%clk 0:01:36.7]} 23. Rfd1 {[%clk 0:01:17.6]} 23... Bb7
{[%clk 0:01:25.3]} 24. f3 {[%clk 0:01:18.8]} 24... Nd5 {[%clk 0:01:20.7]} 25.
Bc5 {[%clk 0:01:15.1]} 25... Bxc5+ {[%clk 0:00:51.9]} 26. Nxc5 {[%clk
0:01:15.7]} 26... Rfc8 {[%clk 0:00:53.4]} 27. Nd7 {[%clk 0:01:15.9]} 27... Ra8
{[%clk 0:00:43.4]} 28. Nxe5 {[%clk 0:01:15.1]} 28... a5 {[%clk 0:00:42.3]} 29.
c4 {[%clk 0:01:09.2]} 29... a4 {[%clk 0:00:36.9]} 30. cxd5 {[%clk 0:01:01.5]}
30... axb3 {[%clk 0:00:37.4]} 31. dxe6 {[%clk 0:01:02.8]} 31... Rxa2 {[%clk
0:00:35.3]} 32. exf7+ {[%clk 0:00:22.5]} 32... Kf8 {[%clk 0:00:20]} 33. Rac1
{[%clk 0:00:20.3]} 33... Rxc1 {[%clk 0:00:19.1]} 34. Rxc1 {[%clk 0:00:21.4]}
34... Rxb2 {[%clk 0:00:18.4]} 35. Rc7 {[%clk 0:00:22.3]} 35... Re2 {[%clk
0:00:18.7]} 36. Ng6# {[%clk 0:00:23]} 1-0

[Event "*** Titled Tuesday Blitz"]
[Site "Chess.com"]
[Date "2018.05.01"]
[Round "1"]
[White "akretchetov"]
[Black "MasterLeif"]
[Result "1/2-1/2"]
[WhiteElo "2131"]
[BlackElo "2431"]
[TimeControl "180+2"]
[EndTime "13:08:21 PDT"]
[Termination "Game drawn - insufficient material"]

1. Nf3 {[%clk 0:02:55.4]} 1... Nf6 {[%clk 0:02:58.7]} 2. c4 {[%clk 0:02:55]}
2... e6 {[%clk 0:02:56.5]} 3. Nc3 {[%clk 0:02:44.1]} 3... d5 {[%clk 0:02:57.6]}
4. d4 {[%clk 0:02:44.9]} 4... Bb4 {[%clk 0:02:56.2]} 5. cxd5 {[%clk 0:02:40.5]}
5... exd5 {[%clk 0:02:52.6]} 6. Bg5 {[%clk 0:02:39.1]} 6... O-O {[%clk
0:02:52.5]} 7. Rc1 {[%clk 0:02:36.6]} 7... Bf5 {[%clk 0:02:52.1]} 8. a3 {[%clk
0:02:29]} 8... Bxc3+ {[%clk 0:02:48.9]} 9. Rxc3 {[%clk 0:02:30]} 9... c6 {[%clk
0:02:46.6]} 10. e3 {[%clk 0:02:25.7]} 10... h6 {[%clk 0:02:46.8]} 11. Bh4 {[%clk
0:02:15.5]} 11... Nbd7 {[%clk 0:02:47.9]} 12. Be2 {[%clk 0:02:10.5]} 12... Re8
{[%clk 0:02:48.9]} 13. O-O {[%clk 0:02:10]} 13... a5 {[%clk 0:02:50.4]} 14. b4
{[%clk 0:02:04.6]} 14... axb4 {[%clk 0:02:51.5]} 15. axb4 {[%clk 0:02:05.9]}
15... Qe7 {[%clk 0:02:52.8]} 16. b5 {[%clk 0:02:04.2]} 16... g5 {[%clk
0:02:50.2]} 17. Bg3 {[%clk 0:02:04.7]} 17... Ne4 {[%clk 0:02:51.5]} 18. Rc1
{[%clk 0:02:03.5]} 18... Nxg3 {[%clk 0:02:50.5]} 19. hxg3 {[%clk 0:02:04]} 19...
Rec8 {[%clk 0:02:49.2]} 20. bxc6 {[%clk 0:02:02.6]} 20... bxc6 {[%clk
0:02:51.1]} 21. Qd2 {[%clk 0:01:57.2]} 21... Bg4 {[%clk 0:02:35.2]} 22. Rc2
{[%clk 0:01:55.1]} 22... c5 {[%clk 0:02:23.1]} 23. dxc5 {[%clk 0:01:54.2]} 23...
Rxc5 {[%clk 0:02:24.5]} 24. Rxc5 {[%clk 0:01:48.3]} 24... Qxc5 {[%clk
0:02:26.4]} 25. Rc1 {[%clk 0:01:45.5]} 25... Ra2 {[%clk 0:02:08.3]} 26. Rxc5
{[%clk 0:01:41.4]} 26... Rxd2 {[%clk 0:02:09.4]} 27. Rc8+ {[%clk 0:01:42.1]}
27... Nf8 {[%clk 0:02:10.2]} 28. Rxf8+ {[%clk 0:01:42]} 28... Kxf8 {[%clk
0:02:12.1]} 29. Nxd2 {[%clk 0:01:42.4]} 29... Bxe2 {[%clk 0:02:14]} 30. Nb3
{[%clk 0:01:37]} 30... Ke7 {[%clk 0:02:06.3]} 31. Nd4 {[%clk 0:01:38]} 31... Bd3
{[%clk 0:02:06.2]} 32. g4 {[%clk 0:01:32.3]} 32... Kd6 {[%clk 0:02:02.3]} 33. f3
{[%clk 0:01:33.4]} 33... Ke5 {[%clk 0:01:53.6]} 34. Kf2 {[%clk 0:01:34.4]} 34...
f5 {[%clk 0:01:43.6]} 35. gxf5 {[%clk 0:01:23.3]} 35... Bxf5 {[%clk 0:01:45.5]}
36. Nxf5 {[%clk 0:01:01.8]} 36... Kxf5 {[%clk 0:01:47.4]} 37. g4+ {[%clk
0:01:00.2]} 37... Ke5 {[%clk 0:01:43.4]} 38. Ke2 {[%clk 0:01:01.5]} 38... d4
{[%clk 0:01:21.5]} 39. e4 {[%clk 0:00:56.8]} 39... Kd6 {[%clk 0:01:13.4]} 40.
Kd2 {[%clk 0:00:55.4]} 40... Kc6 {[%clk 0:01:10.7]} 41. Kc2 {[%clk 0:00:52.3]}
41... Kb5 {[%clk 0:01:02.4]} 42. Kd3 {[%clk 0:00:48.5]} 42... Kc5 {[%clk
0:01:03.6]} 43. Ke2 {[%clk 0:00:47.8]} 43... Kb5 {[%clk 0:00:49.2]} 44. Kd3
{[%clk 0:00:46.2]} 44... Kc5 {[%clk 0:00:50.4]} 45. e5 {[%clk 0:00:41]} 45...
Kd5 {[%clk 0:00:52.3]} 46. e6 {[%clk 0:00:42]} 46... Kxe6 {[%clk 0:00:52.8]} 47.
Kxd4 {[%clk 0:00:43.4]} 47... Kd6 {[%clk 0:00:51.8]} 48. Ke4 {[%clk 0:00:44.6]}
48... Ke6 {[%clk 0:00:52.7]} 49. f4 {[%clk 0:00:37.7]} 49... gxf4 {[%clk
0:00:54.6]} 50. Kxf4 {[%clk 0:00:38.7]} 50... Kf6 {[%clk 0:00:55.6]} 51. Kg3
{[%clk 0:00:37.9]} 51... Kg5 {[%clk 0:00:55.5]} 52. Kh3 {[%clk 0:00:38.3]} 52...
Kf6 {[%clk 0:00:55.3]} 53. Kh4 {[%clk 0:00:39.5]} 53... Kg6 {[%clk 0:00:56.5]}
54. Kg3 {[%clk 0:00:40.8]} 54... Kf6 {[%clk 0:00:56]} 55. Kh4 {[%clk 0:00:39.6]}
55... Kg6 {[%clk 0:00:57.5]} 56. Kh3 {[%clk 0:00:40.5]} 56... Kg5 {[%clk
0:00:59.4]} 57. Kg3 {[%clk 0:00:41.3]} 57... h5 {[%clk 0:01:01.3]} 58. gxh5
{[%clk 0:00:42.2]} 58... Kxh5 {[%clk 0:01:03.2]} 1/2-1/2